Cogmind - Beta 12 @@@ ROGUE MODE // 2023.06.13 @ 06:03:12 Player: HexanyIves Result: Destroyed by S-43 Plague with Heavy Machine Gun Performance ------------- Evolutions (6) 3000 Regions Visited (12) 2400 Robots Destroyed (25) 125 Value Destroyed (834) 834 Prototype IDs (14) 280 Alien Tech Used (0) 0 Bonus (1654) 1654 TOTAL SCORE: 8293 Bonus ------- Entered DSFs 500 Met Warlord at Base 500 MAIN.C Attacked Warlord 500 Warlord Defense Kills 154 Cogmind --------- Core Integrity 0/1150 Matter 300/300 Energy 149/170 System Corruption 27% Temperature Hot (242) Movement Hovering (110) Ox1 Location -3/Proximity Caves Parts ------- > --- POWER (2) -------- Light Antimatter Reactor > --- PROPULSION (6) --- Improved Gyrokinetic Inverter > --- UTILITY (9) ------ Advanced Signal Interpreter Hacking Suite Hacking Suite Advanced Component Analysis Suite > --- WEAPON (2) ------- Field Laser (fused) Plasma Rifle > --- INVENTORY (5) ---- Neutrino Core Compact Battery (200) Advanced Corruption Screen Segregator Peak State ------------ > --- POWER ------------ Angular Momentum Engine Antimatter Reactor > --- PROPULSION ------- Gravmag Array Gravmag Array Gyrokinetic Inverter Improved Gyrokinetic Inverter > --- UTILITY ---------- Advanced Weight Redist. System Advanced Trap Scanner Advanced Signal Interpreter Terrain Scan Processor Advanced Terrain Scan Processor Seismic Detector Cloaking Device Cloaking Device Hacking Suite > --- WEAPON ----------- Dual-blade Saw Spear > --- INVENTORY -------- Impulse Thruster Impulse Thruster Transmission Jammer Rocket Launcher [Rating: 93] Favorites ----------- Power Angular Momentum Engine Engine Angular Momentum Engine Power Core Reinforced Fission Core Reactor Antimatter Reactor Propulsion Gravmag Array Leg Flexi-carbon Leg Wheel Armored Wheel Hover Unit Gravmag Array Flight Unit Flight Unit Utility Hacking Suite Device Advanced Weight Redist. System Storage Medium Storage Unit Processor Advanced Terrain Scan Processor Hackware Hacking Suite Protection Propulsion Shielding Weapon Light Assault Rifle Energy Gun Backup Laser III Ballistic Gun Light Assault Rifle Launcher Rocket Launcher Slashing Weapon Segregator Piercing Weapon Spear Build | -11 -10 -9 -8 -7 -6 -6 -5 -4 -4 -4 -4 -3 ------- Run | Jun Mat Mat Mat Fac Fac DSF Fac Fac Upp Upp War Pro Slots Evolved 12 | . . 2 2 2 2 . 2 2 . . . . Power 1 | . . . . 1 . . . . . . . . Propulsion 4 | . . 2 . . . . . 2 . . . . Utility 7 | . . . 2 1 2 . 2 . . . . . Weapon . | . . . . . . . . . . . . . Parts Attached 79 | 7 3 5 4 8 4 . 2 11 4 2 13 16 Power 13 | 1 . . . 2 1 . . 2 . 1 4 2 Engine 6 | 1 . . . 2 1 . . 1 . 1 . . Core 4 | . . . . . . . . . . . 3 1 Reactor 3 | . . . . . . . . 1 . . 1 1 Propulsion 30 | 2 2 2 1 3 . . 2 3 1 . 5 9 Treads . | . . . . . . . . . . . . . Leg 1 | . . . . . . . . . . . . 1 Wheel 6 | 2 2 2 . . . . . . . . . . Hover 10 | . . . . . . . 2 2 1 . 1 4 Flight 13 | . . . 1 3 . . . 1 . . 4 4 Utility 21 | 2 1 . 2 3 3 . . 4 3 . 1 2 Device 13 | 1 . . 1 2 2 . . 3 3 . . 1 Storage 2 | 1 1 . . . . . . . . . . . Processor 3 | . . . 1 . 1 . . 1 . . . . Hackware 2 | . . . . 1 . . . . . . 1 . Protection 1 | . . . . . . . . . . . . 1 Artifact . | . . . . . . . . . . . . . Weapon 15 | 2 . 3 1 . . . . 2 . 1 3 3 Energy Gun 5 | . . 1 . . . . . . . . 1 3 Energy Cannon . | . . . . . . . . . . . . . Ballistic Gun 5 | 2 . 2 1 . . . . . . . . . Ballistic Cannon . | . . . . . . . . . . . . . Launcher 1 | . . . . . . . . . . 1 . . Special Weapon . | . . . . . . . . . . . . . Impact Weapon . | . . . . . . . . . . . . . Slashing Weapon 3 | . . . . . . . . 1 . . 2 . Piercing Weapon 1 | . . . . . . . . 1 . . . . Special Melee Weapon . | . . . . . . . . . . . . . Unidentified Prototypes 1 | . . . . . . . . . . . 1 . Corrupted Parts 3 | . . . . . . . . . . . . 3 System Corruption 26 | . . . . . . . . . . . . 26 Parts Lost 34 | . . 1 . . . 1 . 1 9 7 1 14 Power 6 | . . . . . . . . . 2 1 1 2 Propulsion 12 | . . . . . . 1 . . 2 1 . 8 Utility 10 | . . . . . . . . 1 5 2 . 2 Weapon 6 | . . 1 . . . . . . . 3 . 2 Highest Loss Streak 7 | . . 1 . . . 1 . 1 6 7 1 7 To Critical Strikes . | . . . . . . . . . . . . . Average Slot Usage (%) 77 | . 100 100 100 97 93 89 70 86 82 50 57 63 Engine 5 | . 14 11 9 14 9 6 5 5 5 2 4 . Core 1 | . . . . . . . . . . . 2 4 Reactor 1 | . . . . . . . . 4 5 . 1 2 Wheel 6 | . 28 44 35 . . . . . . . . . Hover 10 | . . . . . . . 11 16 21 13 12 11 Flight 6 | . . . . 30 26 23 . 3 . . 4 8 Device 15 | . 14 11 18 26 23 26 23 29 19 8 5 6 Storage 2 | . 14 11 9 1 . . . . . . . . Processor 9 | . . . 9 7 13 13 11 10 15 13 10 8 Hackware 4 | . . . . . 6 6 5 5 5 5 7 10 Energy Gun 1 | . . 4 . . . . . . . . 6 3 Ballistic Gun 6 | . 28 17 18 15 13 13 11 6 . . . . Slashing Weapon 1 | . . . . . . . . . 5 3 2 2 Piercing Weapon 1 | . . . . . . . . 3 5 2 . . Naked Turns . | . . . . . . . . . . . . . Heaviest Build 46 | 14 19 21 22 22 21 21 21 39 43 18 39 46 Greatest Support 72 | 26 26 48 48 25 25 25 49 71 72 43 34 34 Greatest Overweight (x) 1 | . . . . 1 . . . . . . 1 1 Average Overweight (x) . | . . . . . . . . . . . . . Largest Inventory Capacity 10 | 8 10 10 10 10 5 5 5 5 5 5 5 5 Average Capacity 5 | 7 8 10 10 5 5 5 5 5 5 5 5 5 Most Carried 10 | 7 9 10 10 10 5 5 5 5 5 5 5 5 Average Carried 5 | 4 7 9 9 5 4 4 3 4 4 4 4 3 Final Capacity 10 | 8 10 10 10 5 5 5 5 5 5 5 5 5 Final Carried 10 | 6 9 10 10 5 5 5 5 5 4 4 4 4 Class Distribution -------------------- 49% | Mutant 18% | Infiltrator-Mutant 11% | Hacker-Mutant 8% | Scavenger-Sprinter 6% | Commander-Mutant 5% | Scavenger-Mutant Dominant Class ---------------- Mutant | -10/Materials Mutant | -9/Materials Mutant | -8/Materials Scavenger-Sprinter | -7/Factory Scavenger-Sprinter | -6/Factory Scavenger-Sprinter | -6/DSF Mutant | -5/Factory Infiltrator-Mutant | -4/Factory Mutant | -4/Upper Caves Mutant | -4/Upper Caves Mutant | -4/Warlord Hacker-Mutant | -3/Proximity Caves Resources | -11 -10 -9 -8 -7 -6 -6 -5 -4 -4 -4 -4 -3 ----------- Run | Jun Mat Mat Mat Fac Fac DSF Fac Fac Upp Upp War Pro Matter Collected 1154 | 290 82 102 82 53 . . . 25 155 91 161 113 Remotely . | . . . . . . . . . . . . . Salvage Created 893 | 95 168 242 53 53 . . . 25 141 53 12 51 Parts 58 | 8 12 24 2 2 . . . 1 7 1 . 1 Haulers Intercepted . | . . . . . . . . . . . . . Recyclers Shooed . | . . . . . . . . . . . . . Parts Field Recycled . | . . . . . . . . . . . . . Retrieved Matter . | . . . . . . . . . . . . . Parts Self-Destructed 6 | . . . . . . . . . 6 . . . Prevented 5 | . . . . . . . . . . . . 5 Kills | -11 -10 -9 -8 -7 -6 -6 -5 -4 -4 -4 -4 -3 ------- Run | Jun Mat Mat Mat Fac Fac DSF Fac Fac Upp Upp War Pro Combat Hostiles Destroyed 20 | . 4 7 2 1 . . . . 3 1 1 1 Melee 4 | . . . . . . . . . 3 1 . . Guns 15 | . 4 6 2 1 . . . . . . 1 1 AOE 1 | . . 1 . . . . . . . . . . Classes Destroyed 9 | 2 1 2 . . . . . 1 1 1 1 . Worker 1 | . . . . . . . . 1 . . . . Tunneler 2 | 2 . . . . . . . . . . . . Recycler 1 | 1 . . . . . . . . . . . . Minesweeper 1 | . . . . . . . . . 1 . . . Swarmer 6 | . . 3 1 . . . . . 2 . . . Grunt 9 | . 4 3 . . . . . . 1 . . 1 Sentry 3 | . . 1 1 1 . . . . . . . . Hunter 1 | . . . . . . . . . . . 1 . Programmer 1 | . . . . . . . . . . 1 . . Decomposer 1 | . . . . . . . . . . 1 . . Best Kill Streak 4 | 2 2 4 1 1 . . . 1 1 1 1 1 Combat Bots Only 4 | . 2 4 1 1 . . . . 1 1 1 1 Max Kills in Single Turn 1 | 1 1 1 1 1 . . . 1 1 1 1 1 Gunslinging . | . . . . . . . . . . . . . Exploded 1 | . . 1 . . . . . . . . . . Melee 1 | . . . . . . . . . 1 1 . . Uniques/NPCs Destroyed . | . . . . . . . . . . . . . Combat | -11 -10 -9 -8 -7 -6 -6 -5 -4 -4 -4 -4 -3 -------- Run | Jun Mat Mat Mat Fac Fac DSF Fac Fac Upp Upp War Pro Damage Taken 3837 | . 117 232 29 86 . 19 . 166 1144 459 176 1409 Core 1260 | . 23 57 . 24 . . . 21 285 212 72 566 Absorbed by Shields . | . . . . . . . . . . . . . Redirected to Shielding 43 | . . . . . . . . . . . . 43 Regen/Repaired (Parts) 39 | . . . . . . . . 21 . . 18 . Core Remaining (%) 95 | 100 90 85 100 96 . 100 100 . . . . . Volleys Fired 76 | 5 13 20 7 5 . . . 1 . 7 4 14 Largest 2 | 2 2 2 2 2 . . . 1 . 1 2 2 Hottest 138 | 40 40 65 48 48 . . . 20 . 33 85 138 Shots Fired 133 | 10 26 40 14 10 . . . 1 . 7 6 19 Gun 126 | 10 26 40 14 10 . . . 1 . . 6 19 Cannon . | . . . . . . . . . . . . . Launcher 7 | . . . . . . . . . . 7 . . Special . | . . . . . . . . . . . . . Kinetic 88 | 10 26 27 14 10 . . . 1 . . . . Thermal 14 | . . . . . . . . . . . 3 11 Explosive 7 | . . . . . . . . . . 7 . . Electromagnetic 13 | . . 13 . . . . . . . . . . Entropic 11 | . . . . . . . . . . . 3 8 Robot Hit Streak 13 | 3 4 5 13 7 . . . . . 4 6 4 Robot Miss Streak 6 | 4 6 4 3 3 . . . . . 3 1 2 Penetration Max 1 | . . . . . . . . . . . . 1 Secondary Targets 2 | . 2 . . . . . . . . . . . Max Gunslinging Chain 1 | . 1 . . . . . . . . . . . Shots Hit Robots 100 | 4 14 23 12 7 . . . 1 16 6 6 11 Core Hits 57 | 3 9 11 6 9 . . . . 6 6 3 4 Critical Kills . | . . . . . . . . . . . . . Critical Parts Destroyed 1 | . . . . . . . . . . . . 1 Critical Strikes 9 | . . . . . . . . . 5 1 . 3 Burn 2 | . . . . . . . . . . . . 2 Sever 5 | . . . . . . . . . 4 1 . . Impale 1 | . . . . . . . . . 1 . . . Detonate 1 | . . . . . . . . . . . . 1 Melee Attacks 39 | . . . . . . . . 8 26 4 1 . Thermal 1 | . . . . . . . . . . . 1 . Impact . | . . . . . . . . . . . . . Slashing 25 | . . . . . . . . . 21 4 . . Piercing 13 | . . . . . . . . 8 5 . . . Sneak Attacks 3 | . . . . . . . . 1 1 1 . . Combat Hostiles . | . . . . . . . . . . . . . Follow-up Attacks 5 | . . . . . . . . . 5 . . . Damage Inflicted 2408 | 70 142 283 145 128 . . . 79 438 284 162 677 Guns 1385 | 70 142 260 145 128 . . . . . . 162 478 Cannons . | . . . . . . . . . . . . . Explosions 415 | . . 23 . . . . . . . 193 . 199 Melee 589 | . . . . . . . . 79 438 72 . . Ramming 19 | . . . . . . . . . . 19 . . Kinetic 624 | 70 142 139 145 128 . . . . . . . . Thermal 386 | . . 23 . . . . . . . . 38 325 Explosive 193 | . . . . . . . . . . 193 . . Electromagnetic 121 | . . 121 . . . . . . . . . . Impact . | . . . . . . . . . . . . . Slashing 373 | . . . . . . . . . 301 72 . . Piercing 216 | . . . . . . . . 79 137 . . . Entropic 476 | . . . . . . . . . . . 124 352 Highest Corruption 27 | . . . . . . 1 . . . 12 12 27 Average Corruption 6 | . . . . . . 1 . . . 10 6 4 Corruption Purged . | . . . . . . . . . . . . . Corruption Blocked . | . . . . . . . . . . . . . Effects 16 | . . . . . . . . . . 6 3 7 Message Errors 2 | . . . . . . . . . . . 1 1 Matter Fused 5 | . . . . . . . . . . 3 1 1 Heat Flow Errors 2 | . . . . . . . . . . 2 . . Energy Discharges 3 | . . . . . . . . . . 1 . 2 Parts Fused 1 | . . . . . . . . . . . . 1 Data Loss (minor) 2 | . . . . . . . . . . . 1 1 Weapon Failures 1 | . . . . . . . . . . . . 1 Overload Shots . | . . . . . . . . . . . . . Overflow Damage 78 | . . . . . . . . 39 35 4 . . Projectiles . | . . . . . . . . . . . . . Explosions 4 | . . . . . . . . . . 4 . . Melee 74 | . . . . . . . . 39 35 . . . Knockbacks . | . . . . . . . . . . . . . Impact . | . . . . . . . . . . . . . Kinetic . | . . . . . . . . . . . . . Secondary . | . . . . . . . . . . . . . Self-Inflicted Damage 113 | . . . . . . . . . . 113 . . Shots 5 | . . . . . . . . . . 5 . . Rammed 7 | . . . . . . . . . . 7 . . Targets Rammed 7 | . . . . . . . . . . 7 . . Kicked . | . . . . . . . . . . . . . Crushed . | . . . . . . . . . . . . . Highest Temperature 242 | . 12 17 . 16 . . . 6 39 211 15 242 Average Temperature 57 | . 6 7 . 9 . . . 4 15 98 6 118 Received Heat Transfer 778 | . 66 78 9 18 . . . 27 234 9 9 328 Effects 2 | . . . . . . . . . . . . 2 Interference 2 | . . . . . . . . . . . . 2 Siege Activations . | . . . . . . . . . . . . . Robots Corrupted . | . . . . . . . . . . . . . Combat Hostiles . | . . . . . . . . . . . . . Parts Fried . | . . . . . . . . . . . . . Impact Corruptions . | . . . . . . . . . . . . . Robots Melted . | . . . . . . . . . . . . . Combat Hostiles . | . . . . . . . . . . . . . Parts Melted . | . . . . . . . . . . . . . Heat Transferred 709 | . . 50 . . . . . . . . 111 548 Parts Sabotaged 4 | . . . . . . . . . . . . 4 Parts Stolen . | . . . . . . . . . . . . . Parts Stripped . | . . . . . . . . . . . . . Power Chain Reactions 1 | . . 1 . . . . . . . . . . Missiles Intercepted . | . . . . . . . . . . . . . Alert | -11 -10 -9 -8 -7 -6 -6 -5 -4 -4 -4 -4 -3 ------- Run | Jun Mat Mat Mat Fac Fac DSF Fac Fac Upp Upp War Pro Peak Influence 251 | 15 99 251 200 223 109 76 34 65 . . . . Initial 109 | . 9 41 105 91 109 76 34 16 . . . . Average 81 | 5 37 178 124 133 109 71 34 32 . . . . Maximum Alert Level 1 | . . 1 1 1 . . . . . . . . Low Security (%) 89 | 100 100 49 89 81 100 100 100 100 . . . . Level 1 10 | . . 50 10 18 . . . . . . . . Level 2 . | . . . . . . . . . . . . . Level 3 . | . . . . . . . . . . . . . Level 4 . | . . . . . . . . . . . . . Level 5 . | . . . . . . . . . . . . . High Security . | . . . . . . . . . . . . . Max Security . | . . . . . . . . . . . . . Squads Dispatched 7 | . . 1 1 2 . . . 2 . . . 1 Investigation . | . . . . . . . . . . . . . Extermination 2 | . . . . 1 . . . 1 . . . . Reinforcement 4 | . . 1 1 1 . . . 1 . . . . Assault 1 | . . . . . . . . . . . . 1 Garrison . | . . . . . . . . . . . . . Intercept . | . . . . . . . . . . . . . Searches Triggered . | . . . . . . . . . . . . . Construction Impeded . | . . . . . . . . . . . . . Haulers Reinforced . | . . . . . . . . . . . . . Active Scanning Responses . | . . . . . . . . . . . . . Cargo Convoy Interrupts . | . . . . . . . . . . . . . Stealth | -11 -10 -9 -8 -7 -6 -6 -5 -4 -4 -4 -4 -3 --------- Run | Jun Mat Mat Mat Fac Fac DSF Fac Fac Upp Upp War Pro Distress Signals 2 | . 1 . 1 . . . . . . . . . Communications Jammed . | . . . . . . . . . . . . . Distress Signals . | . . . . . . . . . . . . . Times Spotted 104 | . 5 10 5 8 . 2 . 6 19 2 22 25 Peak Tracking Total 14 | . 3 3 4 5 . 2 . 4 10 1 7 14 Tactical Retreats 18 | . . 1 . 2 . . . 3 5 . . 7 Traps | -11 -10 -9 -8 -7 -6 -6 -5 -4 -4 -4 -4 -3 ------- Run | Jun Mat Mat Mat Fac Fac DSF Fac Fac Upp Upp War Pro Traps Triggered 1 | . . . . . . . . . . . 1 . Indirectly . | . . . . . . . . . . . . . Trap Hack Attempts . | . . . . . . . . . . . . . Triggered . | . . . . . . . . . . . . . Disarmed . | . . . . . . . . . . . . . Reprogrammed . | . . . . . . . . . . . . . Reused . | . . . . . . . . . . . . . Traps Extracted . | . . . . . . . . . . . . . Installed . | . . . . . . . . . . . . . Triggered 17 | . . . . . . . . . 1 . 15 1 Machines | -11 -10 -9 -8 -7 -6 -6 -5 -4 -4 -4 -4 -3 ---------- Run | Jun Mat Mat Mat Fac Fac DSF Fac Fac Upp Upp War Pro Machines Disabled . | . . . . . . . . . . . . . Max in Single Turn . | . . . . . . . . . . . . . Machines Repaired . | . . . . . . . . . . . . . Machines Sabotaged . | . . . . . . . . . . . . . Overloaded Fab Kills . | . . . . . . . . . . . . . Hacking | -11 -10 -9 -8 -7 -6 -6 -5 -4 -4 -4 -4 -3 --------- Run | Jun Mat Mat Mat Fac Fac DSF Fac Fac Upp Upp War Pro Machines Accessed 9 | . . . 1 1 1 . 1 2 . . 3 . Terminals 5 | . . . 1 1 1 . 1 1 . . . . Fabricators . | . . . . . . . . . . . . . Repair Stations 1 | . . . . . . . . 1 . . . . Recycling Units . | . . . . . . . . . . . . . Scanalyzers . | . . . . . . . . . . . . . Garrison Access . | . . . . . . . . . . . . . Total Hacks 18 | . . . 1 1 1 . 2 3 . . 10 . Successful 15 | . . . . 1 1 . 1 2 . . 10 . Failed 3 | . . . 1 . . . 1 1 . . . . Catastrophic 1 | . . . . . . . . 1 . . . . Database Lockouts . | . . . . . . . . . . . . . Manual 1 | . . . . . . . . 1 . . . . Terminals 6 | . . . 1 1 1 . 2 1 . . . . Fabricators . | . . . . . . . . . . . . . Repair Stations 2 | . . . . . . . . 2 . . . . Recycling Units . | . . . . . . . . . . . . . Scanalyzers . | . . . . . . . . . . . . . Garrison Access . | . . . . . . . . . . . . . Terminal Hacks 13 | . . . . 1 1 . 1 . . . 10 . Record 2 | . . . . . . . . . . . 2 . Prototype ID Bank 7 | . . . . . . . . . . . 7 . Open Door 1 | . . . . . . . . . . . 1 . Open DSF 1 | . . . . . 1 . . . . . . . Locate Traps 1 | . . . . . . . 1 . . . . . Zone Layout 1 | . . . . 1 . . . . . . . . Fabricator Hacks . | . . . . . . . . . . . . . Repair Station Hacks 2 | . . . . . . . . 2 . . . . Scan Component 1 | . . . . . . . . 1 . . . . Repair 1 | . . . . . . . . 1 . . . . Recycling Unit Hacks . | . . . . . . . . . . . . . Scanalyzer . | . . . . . . . . . . . . . Garrison Access Hacks . | . . . . . . . . . . . . . Unauthorized Hacks . | . . . . . . . . . . . . . Terminals . | . . . . . . . . . . . . . Fabricators . | . . . . . . . . . . . . . Repair Stations . | . . . . . . . . . . . . . Recycling Units . | . . . . . . . . . . . . . Scanalyzers . | . . . . . . . . . . . . . Garrison Access . | . . . . . . . . . . . . . Data Cores Recovered . | . . . . . . . . . . . . . Used . | . . . . . . . . . . . . . Hacking Detections 3 | . . . 1 . . . . 2 . . . . Full Trace Events . | . . . . . . . . . . . . . Feedback Events . | . . . . . . . . . . . . . Feedback Blocked . | . . . . . . . . . . . . . Robot Schematics Acquired . | . . . . . . . . . . . . . Robots Built . | . . . . . . . . . . . . . Authchips . | . . . . . . . . . . . . . Time . | . . . . . . . . . . . . . Total Robot Build Rating . | . . . . . . . . . . . . . Part Schematics Acquired . | . . . . . . . . . . . . . Parts Built . | . . . . . . . . . . . . . Authchips . | . . . . . . . . . . . . . Time . | . . . . . . . . . . . . . Total Part Build Rating . | . . . . . . . . . . . . . Parts Repaired 1 | . . . . . . . . 1 . . . . Time 19 | . . . . . . . . 19 . . . . Parts Recycled . | . . . . . . . . . . . . . Recycled Matter . | . . . . . . . . . . . . . Retrieved Matter . | . . . . . . . . . . . . . Retrieved Components . | . . . . . . . . . . . . . Parts Scanalyzed . | . . . . . . . . . . . . . Part Schematics Acquired . | . . . . . . . . . . . . . Parts Damaged . | . . . . . . . . . . . . . Bothacking | -11 -10 -9 -8 -7 -6 -6 -5 -4 -4 -4 -4 -3 ------------ Run | Jun Mat Mat Mat Fac Fac DSF Fac Fac Upp Upp War Pro Used RIF Installer . | . . . . . . . . . . . . . Robots Hacked . | . . . . . . . . . . . . . Non-combat . | . . . . . . . . . . . . . Combat . | . . . . . . . . . . . . . Robot Hacks Applied . | . . . . . . . . . . . . . Relay Couplers Released . | . . . . . . . . . . . . . Fabnet Peak Effective % . | . . . . . . . . . . . . . Robots Rewired 5 | . . . . . . . . . . . 5 . Allies Hacked . | . . . . . . . . . . . . . Hacks Repelled . | . . . . . . . . . . . . . Allies | -11 -10 -9 -8 -7 -6 -6 -5 -4 -4 -4 -4 -3 -------- Run | Jun Mat Mat Mat Fac Fac DSF Fac Fac Upp Upp War Pro Total Allies 5 | . . . . . . . . . . . 5 . Largest Group 5 | . . . . . . . . . . . 5 1 Highest-Rated Group 253 | . . . . . . . . . . . 253 49 Highest-Rated Ally 56 | . . . . . . . . . . . 56 49 Total Orders . | . . . . . . . . . . . . . Ally Attacks 17 | . . . . . . . . . . . 15 2 Total Damage 908 | . . . . . . . . . . . 819 89 Kills 1 | . . . . . . . . . . . 1 . Allies Corrupted . | . . . . . . . . . . . . . Allies Melted 2 | . . . . . . . . . . . 2 . Intel | -11 -10 -9 -8 -7 -6 -6 -5 -4 -4 -4 -4 -3 ------- Run | Jun Mat Mat Mat Fac Fac DSF Fac Fac Upp Upp War Pro Robot Analysis Total . | . . . . . . . . . . . . . Derelict Logs Recovered 4 | . . . . . . . . . 1 3 . . Drone Launches . | . . . . . . . . . . . . . Drone Recoveries . | . . . . . . . . . . . . . Exploration | -11 -10 -9 -8 -7 -6 -6 -5 -4 -4 -4 -4 -3 ------------- Run | Jun Mat Mat Mat Fac Fac DSF Fac Fac Upp Upp War Pro Turns Passed 4001 | 112 185 248 270 273 149 14 55 707 325 339 830 494 Spaces Moved 4176 | 84 147 187 155 401 133 30 72 645 385 477 947 513 Core 6 | 5 . . . . . . . . . . . 1 Treads . | . . . . . . . . . . . . . Legs . | . . . . . . . . . . . . . Wheels 568 | 79 147 187 155 . . . . . . . . . Hover 2892 | . . . . . . . 68 645 385 477 805 512 Flight 710 | . . . . 401 133 30 4 . . . 142 . Fastest Speed 31 | 50 85 90 90 31 31 31 34 50 50 58 39 50 Average Speed 61 | 87 89 90 90 34 31 32 54 51 51 62 62 81 Slowest Speed 122 | 90 90 90 90 111 34 34 56 60 58 70 122 116 Overloaded Moves . | . . . . . . . . . . . . . Propulsion Burnouts . | . . . . . . . . . . . . . Robots Hopped . | . . . . . . . . . . . . . Cave-ins Triggered . | . . . . . . . . . . . . . Exploration Rate (%) 31 | 6 26 20 19 10 6 41 3 19 41 58 92 68 Regions Visited 12 Branch Regions 4 Pre-discovered Areas . | . . . . . . . . . . . . . Known Exits Taken 2 | . . . . . 1 . . . . 1 . . Unknown Exits Taken 9 | 1 1 1 1 1 . . 1 1 1 . 1 . Scrap Searched 6 | . . . . . . . . . 2 2 . 2 Spaces Dug 4 | . . . . . . . . 4 . . . . Terrain Destroyed 59 | . . 4 . . . . . 4 . 38 . 13 Melee 4 | . . . . . . . . 4 . . . . Projectile 11 | . . . . . . . . . . . . 11 AOE 44 | . . 4 . . . . . . . 38 . 2 Terrain Rammed . | . . . . . . . . . . . . . Walls Destroyed . | . . . . . . . . . . . . . Machines Disabled . | . . . . . . . . . . . . . Actions | -11 -10 -9 -8 -7 -6 -6 -5 -4 -4 -4 -4 -3 --------- Run | Jun Mat Mat Mat Fac Fac DSF Fac Fac Upp Upp War Pro Total 5404 | 113 176 231 274 528 241 35 89 1005 468 503 1175 566 Wait 839 | 5 5 2 99 102 95 . 7 320 55 3 136 10 Move 4164 | 83 146 186 154 400 132 29 71 644 384 476 946 513 Hop . | . . . . . . . . . . . . . Pick Up 102 | 13 6 11 6 5 5 2 5 14 3 3 17 12 Fast Attach . | . . . . . . . . . . . . . Attach 50 | 7 . 3 3 3 3 . 2 7 3 2 6 11 Detach 1 | . . . . . 1 . . . . . . . Swap 29 | . 3 2 1 5 1 . . 4 1 . 7 5 Drop 55 | . 3 7 4 8 4 4 4 7 1 1 11 1 Fire 76 | 5 13 20 7 5 . . . 1 . 7 4 14 Melee 34 | . . . . . . . . 8 21 4 1 . Ram 7 | . . . . . . . . . . 7 . . Kick . | . . . . . . . . . . . . . Crush . | . . . . . . . . . . . . . Escape Stasis . | . . . . . . . . . . . . . Rewire 47 | . . . . . . . . . . . 47 . Trap . | . . . . . . . . . . . . . Miscellaneous . | . . . . . . . . . . . . . Route ------- -11/Junkyard -10/Materials -9/Materials -8/Materials -7/Factory -6/Factory -6/DSF -5/Factory -4/Factory (discovered 2 exits: [*Res] / [*Upp]) -4/Upper Caves -4/Upper Caves -4/Warlord -3/Proximity Caves History --------- Turn | Location | Event 20 | -11/Junkyard | Discovered new exit (range 16) 113 | -11/Junkyard | Entered Materials 285 | -10/Materials | Discovered new exit (range 15) 298 | -10/Materials | Entered another Materials area 298 | -9/Materials | Evolved 2 slots: Propulsion x2 364 | -9/Materials | Build established: Mutant 530 | -9/Materials | Discovered new exit (range 8) 546 | -9/Materials | Entered another Materials area 546 | -8/Materials | Evolved 2 slots: Utility x2 775 | -8/Materials | Discovered new exit (range 15) 816 | -8/Materials | Entered Factory 816 | -7/Factory | Evolved 2 slots: Power x1, Utility x1 1086 | -7/Factory | Discovered new exit (range 11) 1089 | -7/Factory | Entered another Factory area 1089 | -6/Factory | Evolved 2 slots: Utility x2 1181 | -6/Factory | Build established: Scavenger-Sprinter 1238 | -6/Factory | Identified exit to DSF 1238 | -6/Factory | Entered DSF 1247 | -6/DSF | Discovered new exit (range 16) 1252 | -6/DSF | Entered Factory 1252 | -5/Factory | Evolved 2 slots: Utility x2 1294 | -5/Factory | Discovered new exit (range 6) 1307 | -5/Factory | Entered another Factory area 1307 | -4/Factory | Evolved 2 slots: Propulsion x2 1537 | -4/Factory | Repaired Imp. Terrain Scanner 1693 | -4/Factory | Build established: Infiltrator-Mutant 1997 | -4/Factory | Discovered new exit (range 4) 2002 | -4/Factory | Discovered new exit (range 8) 2014 | -4/Factory | Entered Upper Caves 2199 | -4/Upper Caves | Attracted the attention of an 0b10 checkpoint 2272 | -4/Upper Caves | Lost 6 parts (1n5u) 2288 | -4/Upper Caves | Discovered new exit (range 15) 2339 | -4/Upper Caves | Entered another Upper Caves area 2370 | -4/Upper Caves | Lost 3 parts (2p1n) 2402 | -4/Upper Caves | Build established: Mutant 2454 | -4/Upper Caves | Identified exit to Warlord 2570 | -4/Upper Caves | System corruption reached 10% 2600 | -4/Upper Caves | Lost 7 parts (1p1n2u3w) 2651 | -4/Upper Caves | Learned 12 Research zone layouts 2651 | -4/Upper Caves | Learned Research machine intel 2670 | -4/Upper Caves | Attracted the attention of an 0b10 checkpoint 2678 | -4/Upper Caves | Entered Warlord 2713 | -4/Warlord | Core integrity fell below 50% 2726 | -4/Warlord | System corruption cleaned by Quarantine Array 3037 | -4/Warlord | Warlord's base attacked by MAIN.C 3075 | -4/Warlord | Met Warlord 3243 | -4/Warlord | Found Prototype Energy Gun 3244 | -4/Warlord | Found Prototype Energy Gun 3297 | -4/Warlord | Identified Vortex Rail (x2) 3387 | -4/Warlord | Warlord forces counterattacked 3437 | -4/Warlord | Spotted B-90 Cyclops 3437 | -4/Warlord | Spotted B-86 Titan 3437 | -4/Warlord | Spotted Striker 3461 | -4/Warlord | P-80 Master assimilated allied Sentinel 7b 3476 | -4/Warlord | Discovered new exit (range 12) 3508 | -4/Warlord | Entered Proximity Caves 3508 | -3/Proximity Caves | Accompanied by 1 ally 3716 | -3/Proximity Caves | Spotted B-86 Titan 3751 | -3/Proximity Caves | Build established: Hacker-Mutant 3773 | -3/Proximity Caves | Lost 7 parts (1p3n1u2w) 3805 | -3/Proximity Caves | Attracted the attention of an 0b10 outpost 3814 | -3/Proximity Caves | Core integrity fell below 20% 3842 | -3/Proximity Caves | Lost 3 parts (3n) 4002 | -3/Proximity Caves | Destroyed by S-43 Plague with Heavy Machine Gun Last Messages --------------- 03925_ System corrupted: Energy discharge (-109). 03926_ Acquired 10 matter. 03929_ Acquired Corrupted Field Laser. 03930_ Integrated Corrupted Field Laser (+10). 03932_ Acquired Corrupted Flexi-carbon Leg. 03933_ Integrated Corrupted Flexi-carbon Leg (+10). 03934_ Acquired 20 matter. 03943_ System corrupted: Component data lost. 03958_ System corrupted: Field Laser fused. 03976_ System corrupted: Energy discharge (-91). 03986_ S-43 Plague suffers critical hit (Burn). 03986_ Rnf. Fission Core destroyed. 03989_ S-43 Plague suffers critical hit (Burn). 03993_ System corrupted: Matter fused (-10). 03995_ Propulsion Shielding destroyed. 03995_ Gyrokinetic Inverter destroyed. 03995_ System corrupted: Plasma Rifle failed to cycle. 03995_ S-43 Plague overheating. 03996_ Flexi-carbon Leg destroyed. 03998_ S-43 Plague overheating. Map ----- +----------------------------------------------------+ | ?????????????????????????????????????????????????? | | ?????????????????????????????????????????????????? | | ?????????????????????????????????????????????????? | | ?????????????????????????????????????????????????? | | ?????????????????????????????????????????????????? | | ?????????????????????????????????????????????????? | | ???????????????????????????####??????????????????? | | ?????????????????????????### ##########?????????? | | ????????????????????????## ## #?????????? | | ?????????? ????????????# #?????????? | | ????????? ?????????????# #?????????# | | ????????? ####?????????# #????#####?## | | ????????? ##??????## ###### ### | | ???????? ##???## / | | ?????????? ##?# # | | ?????????????# ### ############ | | ????????????## ###??????????## # | | ????????????# ## ##?????????????#### | | ???????????## ????## ####?????????????????? | | ???????????# ???# #####????????????????????? | | ??????????????# ### ####?????????????????????? | | ??????????????# s ##????????????????????? | | ??????????????# Y s ##???????????????????? | | ??????? ##s #???????????????????? | | ??????? ### #?# #???????????????????? | | ?????????? ????## #?## @ #???????????????????? | | ?????????????????##?## #???????????????????? | | ???????????????????## #####???????????????? | | ??????????????????## ???????????? | | ????????????????### ## ??????????? | | ????????????????# ##? #### ####???????????? | | ????????????????# ##??###????#??????????????# | | ????????????????# ###????###??????????????????? | | ????????????????# ##?###### #??????????????????? | | ????????????????# #?## ### #??????????????? | | ????????????????# ### #??????????????? | | ????????????????## ## #####??????????????? | | ?????????????????# ## ##?###?????????????? | | ?????????????????# #### ## ### ##????????????? | | ?????????????????# #### ## ### ##??####?????? | | ?????????????????# ### ### #### ##????? | | ?????????????????###### #?# &"# ##???? | | ??????????????????????## #?##### &%"& #?# | | ???????????????????????####?????###&& % # | | ?????????????????????????????????#" &! "" | | ?????????????????????????????????## & # #### # | | ?????????????????????????????????#" # # #????? | | ?????????????????????????????????###"# # #????# | | ???????????????????????????????????### #??? # | | ????????????????????????????????????# #?? # | +----------------------------------------------------+ Best States ------------- Heat Dissipation 43 Energy Generation 35 Energy Capacity 525 Matter Stores 300 Matter Capacity 300 Sight Range 16 Terrain Scan Range 16 Terrain Scan Density 285 ECM Strength 2 Jamming Range 12 Cloak Strength 3 Additional Mass Support 9 Propulsion Shielding 33 Evasion (%) 63 Offensive Hacking 20 Item Schematics ----------------- None Robot Schematics ------------------ None Fabricated ------------ Nothing Alien Tech Used ----------------- None Achievements -------------- None Challenges ------------ None Game ------ Seed EnhancedIntegratedTerrabomb Manual? 0 Play Time 01:00:47 Cumulative 37.2 hours Start 2023.06.13 @ 05:03:28 End 2023.06.13 @ 06:03:12 Sessions 1 Manual Loads 0 Difficulty Rogue Special Mode None Game No. 54 Rogue 54 Adventurer 0 Explorer 0 Win Type - Total 0 Types 0/0/0/0/0/0/0/0/0 Lore% 38 Gallery% 42 Achievement% 31 Wizard Run 0 Options --------- ASCII 0 Keyboard 0 Movement Numpad Keybinds 0 Fullscreen 1 Font 12/Smallcaps Map View 83x54 Tactical HUD 1 Map Filters NONE Filters NONE Steam 1 RUN: b27c98e1-067f-43d5-a792-98dc2013af3a